fUST/lending_fUST_20250819
["ID","MTS","AMOUNT","RATE_DAILY","PERIOD"]
[380218872,1755613889485,-160.0,0.00025,30]
[380218873,1755613889495,-150.99999926,0.00025,5]
[380218874,1755613889509,-160.0,0.00025,30]
[380218875,1755613889519,-203.882797,0.00025,2]
[380218876,1755613889528,-843.93972674,0.00025,30]
[380218877,1755613889537,-206.0,0.00025,7]
[380218878,1755613889546,-561.45322088,0.00025013,2]
[380218879,1755613889555,-1107.7,0.00025075,7]
[380218880,1755613889564,-1029.34,0.000251,14]
[380218881,1755613889574,-430.4012426,0.00025151,2]
[380218882,1755613889583,-432.1534747,0.00025151,2]
[380218883,1755613889593,-432.1534747,0.00025151,2]
[380218884,1755613889603,-432.1534747,0.00025151,2]
[380218885,1755613889613,-432.1534747,0.00025151,2]
[380218886,1755613889623,-431.3183902,0.00025151,2]
[380218887,1755613889633,-500.0,0.00025162,2]
[380218888,1755613889642,-1107.7,0.00025175,7]
[380218889,1755613889652,-514.56,0.00025205,2]
[380218890,1755613889662,-2620.24,0.00025205,2]
[380218891,1755613889672,-1891.29,0.00025205,2]
[380218892,1755613889682,-547.4,0.00025205,2]
[380218893,1755613889691,-533.31,0.00025205,2]
[380218894,1755613889701,-732.56,0.00025205,2]
[380218895,1755613889711,-480.0,0.00025205,2]
[380218896,1755613889720,-506.69,0.00025205,2]
[380218897,1755613889730,-583.2,0.00025205,2]
[380218898,1755613889739,-1286.2,0.00025205,2]
[380218899,1755613889749,-1476.73,0.00025205,2]
[380218900,1755613889764,-614.35,0.00025205,2]
[380218901,1755613889774,-1204.0,0.00025205,2]
[380218902,1755613889784,-584.32,0.00025205,2]
[380218903,1755613889794,-1958.67,0.00025205,2]
[380218904,1755613889803,-991.24,0.00025205,2]
[380218905,1755613889812,-6821.03,0.00025205,2]
[380218906,1755613889822,-519.5,0.00025205,2]
[380218907,1755613889832,-528.46,0.00025205,2]
[380218908,1755613889841,-571.37,0.00025205,2]
[380218909,1755613889851,-2319.3,0.00025205,2]
[380218910,1755613889861,-9592.27,0.00025205,2]
[380218911,1755613889871,-665.67,0.00025205,2]
[380218912,1755613889881,-868.36,0.00025205,2]
[380218913,1755613889890,-1062.99,0.00025205,2]
[380218914,1755613889901,-597.86,0.00025205,2]
[380218915,1755613889910,-666.95,0.00025205,2]
[380218916,1755613889921,-534.72,0.00025205,2]
[380218917,1755613889930,-2568.04,0.00025205,2]
[380218918,1755613889940,-774.12,0.00025205,2]
[380218919,1755613889950,-1648.41,0.00025205,2]
[380218920,1755613889960,-646.52,0.00025205,2]
[380218921,1755613889970,-1496.02,0.00025205,2]
[380218922,1755613889979,-1947.41,0.00025205,2]
[380218923,1755613889989,-1530.12,0.00025205,2]
[380218924,1755613889998,-1222.28,0.00025205,2]
[380218925,1755613890014,-534.48,0.00025205,2]
[380218926,1755613890024,-726.33,0.00025205,2]
[380218927,1755613890035,-603.12,0.00025205,2]
[380218928,1755613890045,-1170.35,0.00025205,2]
[380218929,1755613890055,-571.89,0.00025205,2]
[380218930,1755613890065,-1177.29,0.00025205,2]
[380218931,1755613890075,-1014.46,0.00025205,2]
[380218932,1755613890085,-722.89,0.00025205,2]
[380218933,1755613890095,-936.91,0.00025205,2]
[380218934,1755613890105,-3243.1,0.00025205,2]
[380218935,1755613890115,-1029.92,0.00025205,2]
[380218936,1755613890125,-1138.77,0.00025205,2]
[380218937,1755613890136,-977.82,0.00025205,2]
[380218938,1755613890149,-1153.09,0.00025205,2]
[380218939,1755613890158,-932.49,0.00025205,2]
[380218940,1755613890168,-967.55,0.00025205,2]
[380218941,1755613890178,-885.39,0.00025205,2]
[380218942,1755613890188,-2882.8,0.00025205,2]
[380218943,1755613890198,-513.1,0.00025205,2]
[380218944,1755613890208,-3841.02,0.00025205,2]
[380218945,1755613890218,-493.52,0.00025205,2]
[380218946,1755613890227,-846.97,0.00025205,2]
[380218947,1755613890237,-645.92,0.00025205,2]
[380218948,1755613890248,-570.68,0.00025205,2]
[380218949,1755613890268,-1307.34,0.00025205,2]
[380218950,1755613890278,-1084.74,0.00025205,2]
[380218951,1755613890289,-518.17,0.00025205,2]
[380218952,1755613890299,-665.98,0.00025205,2]
[380218953,1755613890309,-486.91,0.00025205,2]
[380218954,1755613890319,-2187.7,0.00025205,2]
[380218955,1755613890329,-685.15,0.00025205,2]
[380218956,1755613890346,-1639.56,0.00025205,2]
[380218957,1755613890367,-869.33,0.00025205,2]
[380218958,1755613890388,-777.85,0.00025205,2]
[380218959,1755613890402,-11332.24,0.00025205,2]
[380218960,1755613890412,-691.74,0.00025205,2]
[380218961,1755613890421,-2082.42,0.00025205,2]
[380218962,1755613890431,-1521.65,0.00025205,2]
[380218963,1755613890441,-1024.36,0.00025205,2]
[380218964,1755613890450,-785.88,0.00025205,2]
[380218965,1755613890461,-806.64,0.00025205,2]
[380218966,1755613890471,-897.44,0.00025205,2]
[380218967,1755613890481,-350.1107588,0.00025205,2]
[380218968,1755613890491,-250.0,0.00025205,2]
[380218969,1755613890506,-583.0,0.00025206,2]
[380218970,1755613890515,-500.0,0.00025206,2]
[380218971,1755613890525,-5500.0,0.00025252,2]
[380218972,1755613890535,-10237.67817977,0.00025265,3]
[380218973,1755613890546,-1107.7,0.00025275,7]
[380218974,1755613890556,-206.0,0.00025302,7]
[380218975,1755613890566,-1060.0,0.00025365,2]
[380218976,1755613890576,-1107.7,0.00025375,7]
[380218977,1755613890586,-822.35681331,0.00025388,2]
[380218978,1755613890596,-1107.7,0.00025475,7]
[380218979,1755613890606,-514.61687508,0.00025479,2]
[380218980,1755613890615,-2620.32,0.00025479,2]
[380218981,1755613890624,-1891.37298868,0.00025479,2]
[380218982,1755613890634,-547.42469322,0.00025479,2]
[380218983,1755613890644,-533.54289144,0.00025479,2]
[380218984,1755613890654,-732.63520673,0.00025479,2]
[380218985,1755613890663,-375.45609881,0.00025479,2]
[380218986,1755613890673,-506.83565836,0.00025479,2]
[380218987,1755613890682,-583.21206804,0.00025479,2]
[380218988,1755613890692,-1286.40608367,0.00025479,2]
[380218989,1755613890701,-1476.93279185,0.00025479,2]
[380218990,1755613890711,-614.42990137,0.00025479,2]
[380218991,1755613890721,-1204.23810226,0.00025479,2]
[380218992,1755613890730,-584.35088514,0.00025479,2]
[380218993,1755613890740,-1958.70692143,0.00025479,2]
[380218994,1755613890749,-991.46463054,0.00025479,2]
[380218995,1755613890763,-519.61688852,0.00025479,2]
[380218996,1755613890773,-6821.2067743,0.00025479,2]
[380218997,1755613890782,-528.62,0.00025479,2]
[380218998,1755613890791,-571.38,0.00025479,2]
[380218999,1755613890800,-2319.50401976,0.00025479,2]
[380219000,1755613890809,-9592.39365119,0.00025479,2]
[380219001,1755613890819,-665.69143825,0.00025479,2]
[380219002,1755613890829,-868.38532511,0.00025479,2]
[380219003,1755613890838,-1062.99613465,0.00025479,2]
[380219004,1755613890847,-597.96378739,0.00025479,2]
[380219005,1755613890857,-667.06,0.00025479,2]
[380219006,1755613890867,-534.83243865,0.00025479,2]
[380219007,1755613890877,-2568.13141682,0.00025479,2]
[380219008,1755613890887,-774.34145357,0.00025479,2]
[380219009,1755613890896,-1648.48653107,0.00025479,2]
[380219010,1755613890906,-646.58015191,0.00025479,2]
[380219011,1755613890915,-1496.06281952,0.00025479,2]
[380219012,1755613890925,-1947.51912818,0.00025479,2]
[380219013,1755613890935,-1530.3029243,0.00025479,2]
[380219014,1755613890945,-1222.30163222,0.00025479,2]
[380219015,1755613890955,-534.6432528,0.00025479,2]
[380219016,1755613890965,-726.35774861,0.00025479,2]
[380219017,1755613890975,-603.19332717,0.00025479,2]
[380219018,1755613890985,-1170.48220753,0.00025479,2]
[380219019,1755613890994,-1177.30721355,0.00025479,2]
[380219020,1755613891007,-1014.52754348,0.00025479,2]
[380219021,1755613891017,-723.10903485,0.00025479,2]
[380219022,1755613891027,-937.11286851,0.00025479,2]
[380219023,1755613891036,-3243.28555444,0.00025479,2]
[380219024,1755613891045,-1030.11168068,0.00025479,2]
[380219025,1755613891056,-1138.90262748,0.00025479,2]
[380219026,1755613891066,-977.8670948,0.00025479,2]
[380219027,1755613891075,-1153.19833957,0.00025479,2]
[380219028,1755613891085,-932.52673865,0.00025479,2]
[380219029,1755613891095,-967.77,0.00025479,2]
[380219030,1755613891105,-885.56448278,0.00025479,2]
[380219031,1755613891114,-2882.96846946,0.00025479,2]
[380219032,1755613891125,-513.29505462,0.00025479,2]
[380219033,1755613891135,-3841.07467653,0.00025479,2]
[380219034,1755613891146,-493.55514062,0.00025479,2]
[380219035,1755613891155,-846.99108267,0.00025479,2]
[380219036,1755613891165,-646.0,0.00025479,2]
[380219037,1755613891174,-570.7100866,0.00025479,2]
[380219038,1755613891184,-1307.38843014,0.00025479,2]
[380219039,1755613891194,-518.37076104,0.00025479,2]
[380219040,1755613891203,-1084.81992412,0.00025479,2]
[380219041,1755613891213,-666.0125193,0.00025479,2]
[380219042,1755613891223,-487.13471866,0.00025479,2]
[380219043,1755613891232,-2187.82450608,0.00025479,2]
[380219044,1755613891241,-685.27605462,0.00025479,2]
[380219045,1755613891253,-1639.74525968,0.00025479,2]
[380219046,1755613891264,-869.42048714,0.00025479,2]
[380219047,1755613891274,-778.07319256,0.00025479,2]
[380219048,1755613891284,-11332.44490256,0.00025479,2]
[380219049,1755613891294,-691.8279823,0.00025479,2]
[380219050,1755613891304,-2082.42982237,0.00025479,2]
[380219051,1755613891313,-1521.74984577,0.00025479,2]
[380219052,1755613891324,-1024.39899274,0.00025479,2]
[380219053,1755613891333,-786.02,0.00025479,2]
[380219054,1755613891345,-806.77711197,0.00025479,2]
[380219055,1755613891355,-897.46853564,0.00025479,2]
[380219056,1755613891365,-583.0,0.0002548,2]
[380219057,1755613891374,-500.0,0.0002548,2]
[380219058,1755613891384,-1007.0,0.000255,3]
[380219059,1755613891395,-1000.0,0.000255,2]
[380219060,1755613891405,-586.70464481,0.00025552,2]
[380219061,1755613891415,-1107.7,0.00025575,7]
[380219062,1755613891425,-150.0,0.00025637,2]
[380219063,1755613891435,-3870.73,0.00025646,2]
[380219064,1755613891445,-1107.7,0.00025675,7]
[380219065,1755613891455,-10237.67817977,0.00025677,3]
[380219066,1755613891464,-5000.0,0.00025696,30]
[380219067,1755613891474,-1133.48,0.000257,7]
[380219068,1755613891484,-15940.2,0.000257,7]
[380219069,1755613891493,-350.0,0.00025753,2]
[380219070,1755613891507,-583.0,0.00025753,2]
[380219071,1755613891516,-500.0,0.00025754,2]
[380219072,1755613891526,-1107.7,0.00025775,7]
[380219073,1755613891536,-1444.675,0.0002578,14]
[380219074,1755613891545,-39142.3,0.000258,2]
[380219075,1755613891554,-5896.98,0.000258,7]
[380219076,1755613891563,-822.35681331,0.000258,2]
[380219077,1755613891573,-4319.87773298,0.000258,2]
[380219078,1755613891583,-353.39902139,0.00025826,85]
[380219079,1755613891592,-1778.98113468,0.00025863,2]
[380219080,1755613891601,-200.0,0.0002587,20]
[380219081,1755613891610,-1107.7,0.00025875,7]
[380219082,1755613891620,-1114.26787962,0.0002589,30]
[380219083,1755613891629,-587.7886402,0.0002589,2]
[380219084,1755613891638,-306.0,0.0002589,2]
[380219085,1755613891647,-434117.22871927,0.000259,14]
[380219086,1755613891657,-115919.90859335,0.000259,14]
[380219087,1755613891667,-2011.0,0.000259,2]
[380219088,1755613891677,-2262715.64118755,0.000259,14]
[380219089,1755613891686,-1160.0,0.00025913,2]
[380219090,1755613891696,-150.0,0.00025939,2]
[380219091,1755613891705,-1107.7,0.00025975,7]
[380219092,1755613891715,-520.82748545,0.00026,2]
[380219093,1755613891725,-68028.40044718,0.00026,15]
[380219094,1755613891734,-33924.84250749,0.00026,7]
[380219095,1755613891744,-19900.0,0.00026,2]
[380219096,1755613891760,-47156.18545526,0.00026,2]
[380219097,1755613891769,-161.0,0.00026,5]
[380219098,1755613891779,-167.0,0.00026,18]
[380219099,1755613891788,-200.0,0.00026,2]
[380219100,1755613891798,-12685.85563623,0.00026,30]
[380219101,1755613891808,-12685.85563623,0.00026,3]
[380219102,1755613891817,-232.21311493,0.00026,3]
[380219103,1755613891827,-232.21311493,0.00026,30]
[380219104,1755613891837,-216.8835046,0.00026,3]
[380219105,1755613891847,-216.8835046,0.00026,30]
[380219106,1755613891856,-160.0,0.00026,3]
[380219107,1755613891866,-160.0,0.00026,3]
[380219108,1755613891876,-160.0,0.00026,30]
[380219109,1755613891886,-375.88899365,0.00026,3]
[380219110,1755613891896,-375.88899365,0.00026,30]
[380219111,1755613891906,-160.0,0.00026,3]
[380219112,1755613891915,-528.6845513,0.00026,3]
[380219113,1755613891924,-215.79176414,0.00026,3]
[380219114,1755613891934,-215.79176414,0.00026,30]
[380219115,1755613891943,-417.15472785,0.00026,3]
[380219116,1755613891953,-417.15472785,0.00026,30]
[380219117,1755613891962,-843.93972674,0.00026,3]
[380219118,1755613891972,-843.93972674,0.00026,30]
[380219119,1755613891982,-583.0,0.00026027,2]
[380219120,1755613891991,-500.0,0.00026028,2]
[380219121,1755613892000,-1000.0,0.00026035,20]
[380219122,1755613892014,-1107.7,0.00026075,7]
[380219123,1755613892023,-10237.67817977,0.0002609,4]
[380219124,1755613892033,-191.26976134,0.0002616,2]
[380219125,1755613892042,-1107.7,0.00026175,7]
[380219126,1755613892052,-150.18851506,0.00026242,2]
[380219127,1755613892061,-1107.7,0.00026275,7]
[380219128,1755613892071,-206.0,0.0002628,7]
[380219129,1755613892080,-586.70464481,0.00026282,2]
[380219130,1755613892090,-356.91892096,0.00026301,2]
[380219131,1755613892100,-583.0,0.00026301,2]
[380219132,1755613892110,-500.0,0.00026302,2]
[380219133,1755613892120,-1107.7,0.00026375,7]
[380219134,1755613892130,-972.0,0.00026428,2]
[380219135,1755613892140,-1260.0,0.00026461,2]
[380219136,1755613892149,-1107.7,0.00026475,7]
[380219137,1755613892159,-10237.67817977,0.00026503,5]
[380219138,1755613892170,-2068.15,0.00026531,2]
[380219139,1755613892180,-200.0,0.0002654,14]
[380219140,1755613892190,-336.87193253,0.00026569,7]
[380219141,1755613892200,-1107.7,0.00026575,7]
[380219142,1755613892210,-583.0,0.00026575,2]
[380219143,1755613892220,-500.0,0.00026576,2]
[380219144,1755613892231,-21000.0,0.000266,2]
[380219145,1755613892241,-4515.86,0.00026633,2]
[380219146,1755613892251,-1107.7,0.00026675,7]
[380219147,1755613892265,-414.482372,0.00026676,2]
[380219148,1755613892276,-360.927836,0.00026712,2]
[380219149,1755613892286,-190.0,0.00026771,2]
[380219150,1755613892296,-1107.7,0.00026775,7]
[380219151,1755613892306,-500.0,0.00026776,2]
[380219152,1755613892315,-700.0,0.00026794,2]
[380219153,1755613892326,-1040.09,0.000268,10]
[380219154,1755613892336,-700.0,0.00026801,2]
[380219155,1755613892349,-592.58990094,0.00026849,2]
[380219156,1755613892359,-500.0,0.0002685,2]
[380219157,1755613892369,-700.0,0.00026853,2]
[380219158,1755613892378,-700.0,0.00026855,2]
[380219159,1755613892390,-1200.0,0.00026866,2]
[380219160,1755613892399,-200.0,0.0002687,30]
[380219161,1755613892410,-500.0,0.00026871,2]
[380219162,1755613892420,-500.0,0.00026871,2]
[380219163,1755613892430,-1107.7,0.00026875,7]
[380219164,1755613892587,-700.0,0.00026892,2]
[380219165,1755613892598,-1133.48,0.000269,7]
[380219166,1755613892609,-15940.2,0.000269,7]
[380219167,1755613892619,-500.0,0.00026911,2]
[380219168,1755613892632,-10237.67817977,0.00026915,6]
[380219169,1755613892643,-700.0,0.00026924,2]
[380219170,1755613892652,-1200.0,0.00026934,2]
[380219171,1755613892662,-500.0,0.00026946,2]
[380219172,1755613892673,-700.0,0.0002695,2]
[380219173,1755613892683,-1200.0,0.0002696,2]
[380219174,1755613892693,-1107.7,0.00026975,7]
[380219175,1755613892703,-500.0,0.0002699,2]
[380219176,1755613892712,-2000.0,0.00027,7]
[380219177,1755613892722,-2000.0,0.00027,7]
[380219178,1755613892732,-694.07827821,0.00027,45]
[380219179,1755613892741,-152.82697128,0.00027,2]
[380219180,1755613892751,-39142.3,0.00027,2]
[380219181,1755613892765,-5896.98,0.00027,7]
[380219182,1755613892774,-1088.99,0.00027,10]
[380219183,1755613892784,-12685.85563623,0.00027,10]
[380219184,1755613892793,-160.0,0.00027,10]
[380219185,1755613892803,-232.21311493,0.00027,10]
[380219186,1755613892813,-216.8835046,0.00027,10]
[380219187,1755613892823,-160.0,0.00027,10]
[380219188,1755613892833,-375.88899365,0.00027,10]
[380219189,1755613892843,-375.88899365,0.00027,3]
[380219190,1755613892853,-160.0,0.00027,10]
[380219191,1755613892863,-528.6845513,0.00027,10]
[380219192,1755613892873,-215.79176414,0.00027,10]
[380219193,1755613892883,-417.15472785,0.00027,10]
[380219194,1755613892893,-843.93972674,0.00027,10]
[380219195,1755613892903,-417.15472785,0.00027,3]
[380219196,1755613892912,-700.0,0.00027002,2]
[380219197,1755613892921,-1360.0,0.00027009,2]
[380219198,1755613892931,-1778.98113468,0.00027011,2]
[380219199,1755613892940,-586.70464481,0.00027011,2]
[380219200,1755613892950,-700.0,0.0002705,2]
[380219201,1755613892961,-700.0,0.00027058,2]
[380219202,1755613892972,-1000.0,0.00027061,12]
[380219203,1755613892982,-1107.7,0.00027075,7]
[380219204,1755613892991,-154.692496,0.00027077,60]
[380219205,1755613893001,-154.692496,0.00027078,60]
[380219206,1755613893015,-154.692496,0.0002708,60]
[380219207,1755613893025,-215.6688,0.00027083,60]
[380219208,1755613893036,-200.0,0.00027084,60]
[380219209,1755613893047,-1200.0,0.00027086,2]
[380219210,1755613893057,-500.0,0.00027098,2]
[380219211,1755613893068,-12683.78573522,0.000271,7]
[380219212,1755613893078,-182.1237955,0.00027101,60]
[380219213,1755613893088,-168832.14420096,0.00027113,20]
[380219214,1755613893213,-59699.9996,0.00027113,20]
[380219215,1755613893225,-335.07716997,0.00027113,20]
[380219216,1755613893238,-94764.04932126,0.00027113,20]
[380219217,1755613893251,-289.00347756,0.00027113,20]
[380219218,1755613893266,-4647.20167494,0.00027113,20]
[380219219,1755613893279,-13282.72525915,0.00027113,20]
[380219220,1755613893405,-480.0,0.00019178,2]
[380219221,1755613893416,-480.0,0.00019178,2]
[380219222,1755613893426,-480.0,0.00019178,2]
[380219223,1755613893437,-480.0,0.00019178,2]
[380219224,1755613893447,-480.0,0.00019452,2]
[380219225,1755613893457,-480.0,0.00019452,2]
[380219226,1755613893467,-480.0,0.00019726,2]
[380219227,1755613893477,-19762.68906,0.00027113,20]
[380219228,1755613893490,-453.0,0.00027113,20]
[380219229,1755613894087,-480.0,0.00019178,2]
[380219230,1755613894097,-480.0,0.00019452,2]
[380219231,1755613894107,-53042.79334651,0.00027113,20]
[380219232,1755613894119,-571.45,0.00027113,20]
[380219233,1755613894130,-1918.54502828,0.00027113,20]
[380219234,1755613990065,8674.58643992,0.00018246,2]
[380219235,1755613990087,10000.0,0.00018246,2]
[380219236,1755613990130,10000.0,0.00018246,2]
[380219237,1755613990152,10000.0,0.00018246,2]
[380219238,1755613990185,10000.0,0.00018246,2]
[380219239,1755613990208,3019.78570158,0.00018246,2]
[380219240,1755614040482,-291.22738317,0.00018787,2]
[380219241,1755614043152,-208.83805943,0.00018787,2]
[380219242,1755614046973,-480.44278651,0.00018787,2]
[380219243,1755614048663,-300.0,0.00018787,2]
[380219244,1755614051965,-224.84905329,0.00018787,2]
[380219245,1755614054206,-162.85564392,0.00018787,2]
[380219246,1755614056235,-218.28518403,0.00018787,2]
[380219247,1755614057785,-288.09008906,0.00018787,2]
[380219248,1755614061780,-254.76963661,0.00018787,2]
[380219249,1755614063309,-215.49206425,0.00018787,2]
[380219250,1755614066725,-348.64766821,0.00018787,2]
[380219251,1755614069357,-382.82525639,0.00018787,2]
[380219252,1755614071423,-253.03501115,0.00018787,2]
[380219253,1755614073524,-172.98712296,0.00018787,2]
[380219254,1755614074877,1000.0,0.00018125,2]
[380219255,1755614075123,-151.90456186,0.00018787,2]
[380219256,1755614077872,-152.3548301,0.00018787,2]
[380219258,1755614087491,152.3548301,0.0001856,2]
[380219259,1755614134025,370.670772,0.00013699,2]
[380219262,1755614393329,5000.0,0.0001856,2]
[380219263,1755614402672,425.1516807,0.00018124,2]
[380219264,1755614410427,32.03701562,0.0001856,2]
[380219265,1755614410452,4967.96298438,0.0001856,2]
[380219266,1755614428084,5000.0,0.0001856,2]
[380219267,1755614445748,32.03701562,0.0001856,2]
[380219268,1755614445771,4967.96298438,0.0001856,2]
[380219269,1755614462025,5000.0,0.0001856,2]
[380219270,1755614471081,32.03701562,0.00018077,2]
[380219271,1755614471103,2211.02553538,0.00018077,2]
[380219272,1755614478778,5000.0,0.0001856,2]
[380219273,1755614479400,-232.81674726,0.00018687,2]
[380219274,1755614481539,-320.04039863,0.00018687,2]
[380219275,1755614483011,-190.93571439,0.00018687,2]
[380219276,1755614486245,-73.46776413,0.00018687,2]
[380219277,1755614495295,-259.49709606,0.00018788,2]
[380219278,1755614498640,-385.26431025,0.00018788,2]
[380219279,1755614500952,-200.0,0.00018788,2]
[380219280,1755614503149,-253.76847286,0.00018788,2]
[380219281,1755614506545,-280.85711593,0.00018788,2]
[380219282,1755614508390,-300.0,0.00018788,2]
[380219283,1755614510668,-170.5846242,0.00018788,2]
[380219284,1755614512192,-217.00623575,0.00018788,2]
[380219285,1755614518918,-301.58352662,0.00018788,2]
[380219286,1755614521224,-416.53745101,0.00018788,2]
[380219287,1755614526753,-272.36045322,0.00018788,2]
[380219288,1755614530608,-255.17850096,0.00018788,2]
[380219289,1755614532812,-300.0,0.00018788,2]
[380219290,1755614534331,-263.74316811,0.00018788,2]
[380219291,1755614537218,-195.60715236,0.00018788,2]
[380219292,1755614541204,-300.0,0.00018788,2]
[380219293,1755614563818,1038.89488178,0.0001856,2]
[380219298,1755614827121,-5000.0,0.00018788,2]
[380219299,1755614827141,-1046.65947631,0.00018873,2]
[380219300,1755614827161,-1200.0,0.00018973,2]
[380219301,1755614827183,-300.0,0.00018973,2]
[380219302,1755614827203,-7656.95615586,0.00018974,2]
[380219303,1755614827223,-300.0,0.00019075,2]
[380219304,1755614827245,-1200.0,0.00019075,2]
[380219305,1755614827265,-300.0,0.00019075,2]
[380219306,1755614827287,-160.0,0.00019076,2]
[380219307,1755614827307,-300.0,0.00019076,2]
[380219308,1755614827326,-300.0,0.00019076,2]
[380219309,1755614827346,-2201.07661754,0.00019078,2]
[380219310,1755614827368,-10405.17325242,0.00019078,2]
[380219311,1755614827388,-500.0,0.00019162,2]
[380219312,1755614827408,-500.0,0.00019162,2]
[380219313,1755614827429,-626.94,0.00019162,2]
[380219314,1755614827449,-444.18294556,0.00019162,2]
[380219315,1755614827469,-500.0,0.00019162,2]
[380219316,1755614827488,-500.0,0.00019162,2]
[380219317,1755614827511,-500.0,0.00019162,2]
[380219318,1755614827532,-500.0,0.00019162,2]
[380219319,1755614827552,-500.0,0.00019162,2]
[380219320,1755614827574,-500.0,0.00019162,2]
[380219321,1755614827593,-500.0,0.00019162,2]
[380219322,1755614827612,-500.0,0.00019162,2]
[380219323,1755614827632,-500.0,0.00019162,2]
[380219324,1755614827658,-500.0,0.00019162,2]
[380219325,1755614827679,-500.0,0.00019162,2]
[380219326,1755614827701,-508.98754649,0.00019162,2]
[380219327,1755614827723,-500.0,0.00019162,2]
[380219328,1755614827744,-500.0,0.00019162,2]
[380219329,1755614827765,-500.0,0.00019162,2]
[380219330,1755614827789,-500.0,0.00019162,2]
[380219331,1755614827810,-500.0,0.00019162,2]
[380219332,1755614827830,-283.20795466,0.00019162,2]
[380219333,1755614827849,-500.0,0.00019162,2]
[380219334,1755614827871,-500.0,0.00019162,2]
[380219335,1755614827892,-500.0,0.00019162,2]
[380219336,1755614827914,-371.8013793,0.00019162,2]
[380219337,1755614827938,-500.0,0.00019162,2]
[380219338,1755614827959,-371.78021997,0.00019162,2]
[380219339,1755614827980,-500.0,0.00019162,2]
[380219340,1755614828006,-500.0,0.00019162,2]
[380219341,1755614828028,-500.0,0.00019162,2]
[380219342,1755614828056,-500.0,0.00019162,2]
[380219343,1755614828077,-332.77294277,0.00019162,2]
[380219344,1755614828098,-545.03578543,0.00019162,2]
[380219345,1755614828119,-500.0,0.00019162,2]
[380219346,1755614828143,-500.0,0.00019162,2]
[380219347,1755614828166,-500.0,0.00019162,2]
[380219348,1755614828189,-500.0,0.00019162,2]
[380219349,1755614828212,-500.0,0.00019162,2]
[380219350,1755614828235,-500.0,0.00019162,2]
[380219351,1755614828259,-500.0,0.00019162,2]
[380219352,1755614828286,-500.0,0.00019162,2]
[380219353,1755614828309,-500.0,0.00019162,2]
[380219354,1755614828333,-500.0,0.00019162,2]
[380219355,1755614828355,-500.0,0.00019162,2]
[380219356,1755614828378,-500.0,0.00019162,2]
[380219357,1755614828400,-364.63979231,0.00019162,2]
[380219358,1755614828422,-500.0,0.00019162,2]
[380219359,1755614828446,-500.0,0.00019162,2]
[380219360,1755614828469,-500.0,0.00019162,2]
[380219361,1755614828493,-500.0,0.00019162,2]
[380219362,1755614828514,-500.0,0.00019162,2]
[380219363,1755614828540,-500.0,0.00019162,2]
[380219364,1755614828562,-500.0,0.00019162,2]
[380219365,1755614828585,-500.0,0.00019162,2]
[380219366,1755614828608,-500.0,0.00019162,2]
[380219367,1755614828631,-500.0,0.00019162,2]
[380219368,1755614828662,-500.0,0.00019162,2]
[380219369,1755614828684,-151.0,0.00019166,2]
[380219370,1755614828705,-151.0,0.00019166,2]
[380219371,1755614828726,-151.0,0.00019166,2]
[380219372,1755614828746,-151.0,0.00019166,2]
[380219373,1755614828765,-151.0,0.00019166,2]
[380219374,1755614828790,-151.0,0.00019166,2]
[380219375,1755614828812,-151.0,0.00019166,2]
[380219376,1755614828833,-151.0,0.00019166,2]
[380219377,1755614828853,-151.0,0.00019166,2]
[380219378,1755614828873,-151.0,0.00019166,2]